fUST/lending_fUST_20240705
["ID","MTS","AMOUNT","RATE_DAILY","PERIOD"]
[331157382,1720110645708,-500.0,0.0001452,2]
[331157384,1720110645722,-1438.39,0.0001452,2]
[331157386,1720110645732,-846.13,0.0001452,2]
[331157388,1720110645741,-500.0,0.0001452,2]
[331157390,1720110645750,-500.0,0.0001452,2]
[331157392,1720110645760,-500.0,0.0001452,2]
[331157394,1720110645769,-728.91,0.0001452,2]
[331157395,1720110645778,-500.0,0.0001452,2]
[331157397,1720110645787,-500.0,0.0001452,2]
[331157399,1720110645797,-1892.62,0.0001452,2]
[331157401,1720110645806,-10261.95,0.0001452,2]
[331157403,1720110645815,-500.0,0.0001452,2]
[331157405,1720110645825,-500.0,0.0001452,2]
[331157407,1720110645834,-500.0,0.0001452,2]
[331157409,1720110645843,-500.0,0.0001452,2]
[331157411,1720110645852,-500.0,0.0001452,2]
[331157413,1720110645861,-591.54,0.0001452,2]
[331157415,1720110645870,-500.0,0.0001452,2]
[331157417,1720110645879,-500.0,0.0001452,2]
[331157419,1720110645889,-500.0,0.0001452,2]
[331157421,1720110645898,-153.34073236,0.0001452,2]
[331157423,1720110645907,-1204.96,0.0001452,2]
[331157425,1720110645916,-1611.14,0.0001452,2]
[331157427,1720110645926,-500.0,0.0001452,2]
[331157429,1720110645936,-500.0,0.0001452,2]
[331157431,1720110645945,-526.05,0.0001452,2]
[331157433,1720110645957,-500.0,0.0001452,2]
[331157435,1720110645967,-500.0,0.0001452,2]
[331157437,1720110645976,-500.0,0.0001452,2]
[331157439,1720110645985,-500.0,0.0001452,2]
[331157441,1720110645994,-500.0,0.0001452,2]
[331157443,1720110646003,-1005.3,0.0001452,2]
[331157445,1720110646013,-500.0,0.0001452,2]
[331157447,1720110646022,-500.0,0.0001452,2]
[331157449,1720110646031,-509.69890033,0.0001452,2]
[331157451,1720110646041,-500.0,0.0001452,2]
[331157453,1720110646050,-500.0,0.0001452,2]
[331157455,1720110646059,-845.0,0.0001452,2]
[331157457,1720110646068,-1154.75,0.0001452,2]
[331157459,1720110646077,-500.0,0.0001452,2]
[331157461,1720110646086,-12485.0,0.0001452,2]
[331157463,1720110646096,-500.0,0.0001452,2]
[331157465,1720110646105,-500.0,0.0001452,2]
[331157467,1720110646114,-500.0,0.0001452,2]
[331157469,1720110646123,-500.0,0.0001452,2]
[331157471,1720110646132,-538.82,0.0001452,2]
[331157474,1720110646141,-500.0,0.0001452,2]
[331157476,1720110646150,-500.0,0.0001452,2]
[331157478,1720110646159,-756.84,0.0001452,2]
[331157480,1720110646168,-500.0,0.0001452,2]
[331157482,1720110646178,-587.1,0.0001452,2]
[331157484,1720110646187,-500.0,0.0001452,2]
[331157486,1720110646199,-500.0,0.0001452,2]
[331157488,1720110646208,-500.0,0.0001452,2]
[331157491,1720110646217,-500.0,0.0001452,2]
[331157493,1720110646226,-838.16,0.0001452,2]
[331157496,1720110646235,-484.88004315,0.0001452,2]
[331157499,1720110646245,-500.0,0.0001452,2]
[331157501,1720110646255,-561.2071717,0.0001452,2]
[331157504,1720110646265,-500.0,0.0001452,2]
[331157507,1720110646275,-500.0,0.0001452,2]
[331157509,1720110646284,-500.0,0.0001452,2]
[331157511,1720110646293,-401.37770729,0.0001452,2]
[331157515,1720110646303,-500.0,0.0001452,2]
[331157530,1720110646399,-500.0,0.0001452,2]
[331157532,1720110646413,-913.62,0.0001452,2]
[331157534,1720110646423,-897.42,0.0001452,2]
[331157536,1720110646433,-567.18717638,0.0001452,2]
[331157538,1720110646442,-500.0,0.0001452,2]
[331157540,1720110646454,-500.0,0.0001452,2]
[331157542,1720110646464,-500.0,0.0001452,2]
[331157544,1720110646474,-1258.68,0.0001452,2]
[331157546,1720110646485,-500.0,0.0001452,2]
[331157549,1720110646494,-500.0,0.0001452,2]
[331157551,1720110646503,-277.01729115,0.0001452,2]
[331157553,1720110646512,-2609.47,0.0001452,2]
[331157555,1720110646521,-500.0,0.0001452,2]
[331157558,1720110646530,-500.0,0.0001452,2]
[331157562,1720110646539,-623.29,0.0001452,2]
[331157565,1720110646548,-706.13,0.0001452,2]
[331157568,1720110646557,-749.47,0.0001452,2]
[331157571,1720110646567,-3317.02,0.0001452,2]
[331157574,1720110646576,-518.32,0.0001452,2]
[331157577,1720110646586,-1766.78,0.0001452,2]
[331157579,1720110646595,-1017.3430343,0.0001452,2]
[331157604,1720110646774,-64.8669657,0.0001452,2]
[331157606,1720110646783,-500.0,0.0001452,2]
[331157609,1720110646792,-500.0,0.0001452,2]
[331157610,1720110646801,-500.0,0.0001452,2]
[331157612,1720110646810,-636.09,0.0001452,2]
[331157614,1720110646819,-1486.5,0.0001452,2]
[331157616,1720110646827,-500.0,0.0001452,2]
[331157618,1720110646836,-1050.51,0.0001452,2]
[331157620,1720110646845,-500.0,0.0001452,2]
[331157622,1720110646854,-500.0,0.0001452,2]
[331157624,1720110646863,-500.0,0.0001452,2]
[331157626,1720110646872,-500.0,0.0001452,2]
[331157628,1720110646881,-500.0,0.0001452,2]
[331157630,1720110646890,-500.0,0.0001452,2]
[331157632,1720110646899,-6118.75,0.0001452,2]
[331157634,1720110646908,-500.0,0.0001452,2]
[331157636,1720110646918,-500.0,0.0001452,2]
[331157638,1720110646927,-453.37194696,0.0001452,2]
[331157693,1720110647467,-439.92805304,0.0001452,2]
[331157695,1720110647476,-500.0,0.0001452,2]
[331157697,1720110647488,-500.0,0.0001452,2]
[331157699,1720110647498,-3590.73,0.0001452,2]
[331157701,1720110647508,-500.0,0.0001452,2]
[331157703,1720110647517,-1226.25,0.0001452,2]
[331157705,1720110647527,-500.0,0.0001452,2]
[331157707,1720110647536,-500.0,0.0001452,2]
[331157709,1720110647545,-562.92,0.0001452,2]
[331157711,1720110647554,-20717.6,0.0001452,2]
[331157713,1720110647567,-162.352123,0.0001452,2]
[331157714,1720110647576,-500.0,0.0001452,2]
[331157716,1720110647585,-500.0,0.0001452,2]
[331157718,1720110647595,-500.0,0.0001452,2]
[331157720,1720110647605,-151.0,0.0001452,2]
[331157722,1720110647614,-500.0,0.0001452,2]
[331157724,1720110647624,-500.0,0.0001452,2]
[331157726,1720110647634,-2182.0,0.0001452,2]
[331157728,1720110647643,-500.0,0.0001452,2]
[331157730,1720110647653,-414.76775847,0.0001452,2]
[331157732,1720110647663,-3865.01,0.0001452,2]
[331157734,1720110647672,-419.68214567,0.0001452,2]
[331157736,1720110647682,-1136.41,0.0001452,2]
[331157738,1720110647692,-504.05,0.0001452,2]
[331157740,1720110647702,-1057.04,0.0001452,2]
[331157742,1720110647712,-9050.75,0.0001452,2]
[331157744,1720110647721,-6604.36,0.0001452,2]
[331157746,1720110647732,-500.0,0.0001452,2]
[331157748,1720110647742,-500.0,0.0001452,2]
[331157750,1720110647751,-500.0,0.0001452,2]
[331157752,1720110647760,-1592.62,0.0001452,2]
[331157754,1720110647769,-500.0,0.0001452,2]
[331157756,1720110647779,-500.0,0.0001452,2]
[331157758,1720110647788,-5550.65,0.0001452,2]
[331157760,1720110647797,-1406.92,0.0001452,2]
[331157762,1720110647807,-1299.27,0.0001452,2]
[331157764,1720110647816,-642.73,0.0001452,2]
[331157766,1720110647827,-6467.95,0.0001452,2]
[331157768,1720110647836,-151.0,0.0001452,2]
[331157769,1720110647846,-3712.62,0.0001452,2]
[331157771,1720110647855,-201.81,0.0001452,2]
[331157774,1720110647865,-610.82,0.0001452,2]
[331157775,1720110647874,-587.0,0.00014725,2]
[331157777,1720110647883,-2297.38,0.00014783,2]
[331157779,1720110647892,-620.00037616,0.00014787,2]
[331157781,1720110647902,-2297.38,0.00014793,2]
[331157783,1720110647911,-2297.38,0.00014793,2]
[331157785,1720110647921,-1286.25239983,0.00014794,2]
[331157787,1720110647930,-500.0,0.00014794,2]
[331157788,1720110647938,-595.34,0.00014794,2]
[331157790,1720110647949,-500.0,0.00014794,2]
[331157792,1720110647957,-500.0,0.00014794,2]
[331157794,1720110647966,-359.62076741,0.00014794,2]
[331157796,1720110647976,-500.0,0.00014794,2]
[331157798,1720110647986,-1495.43,0.00014794,2]
[331157800,1720110647996,-500.0,0.00014794,2]
[331157802,1720110648006,-500.0,0.00014794,2]
[331157804,1720110648016,-500.0,0.00014794,2]
[331157806,1720110648025,-634.02,0.00014794,2]
[331157808,1720110648035,-500.0,0.00014794,2]
[331157810,1720110648044,-500.0,0.00014794,2]
[331157812,1720110648054,-500.0,0.00014794,2]
[331157823,1720110648158,-940.13,0.00014794,2]
[331157825,1720110648168,-500.0,0.00014794,2]
[331157827,1720110648178,-1438.39,0.00014794,2]
[331157829,1720110648188,-846.13,0.00014794,2]
[331157831,1720110648197,-500.0,0.00014794,2]
[331157833,1720110648207,-287.13705542,0.00014794,2]
[331157835,1720110648216,-500.0,0.00014794,2]
[331157837,1720110648225,-728.91,0.00014794,2]
[331157839,1720110648235,-500.0,0.00014794,2]
[331157840,1720110648244,-500.0,0.00014794,2]
[331157842,1720110648253,-1892.62,0.00014794,2]
[331157844,1720110648262,-4005.43535148,0.00014794,2]
[331157847,1720110648280,-323.81791502,0.00014794,2]
[331157866,1720110648463,-5932.6967335,0.00014794,2]
[331157868,1720110648472,-151.0,0.00014794,2]
[331157870,1720110648484,-500.0,0.00014794,2]
[331157872,1720110648493,-500.0,0.00014794,2]
[331157874,1720110648503,-151.0,0.00014794,2]
[331157876,1720110648512,-500.0,0.00014794,2]
[331157878,1720110648521,-500.0,0.00014794,2]
[331157880,1720110648530,-238.72666054,0.00014794,2]
[331157896,1720110648677,-474.13672372,0.00013698,2]
[331157913,1720110648831,-25.86327628,0.00013698,2]
[331157915,1720110648840,-153.0,0.00013805,2]
[331157917,1720110648849,-500.0,0.00013972,2]
[331157919,1720110648858,-192.26760945,0.00014794,2]
[331157921,1720110648870,-69.00573001,0.00014794,2]
[331157923,1720110648879,-591.54,0.00014794,2]
[331157925,1720110648887,-500.0,0.00014794,2]
[331157927,1720110648896,-500.0,0.00014794,2]
[331157929,1720110648905,-500.0,0.00014794,2]
[331157931,1720110648916,-1204.96,0.00014794,2]
[331157933,1720110648925,-1611.14,0.00014794,2]
[331157935,1720110648935,-500.0,0.00014794,2]
[331157937,1720110648944,-247.928671,0.00014794,2]
[331157939,1720110648954,-151.0,0.00014794,2]
[331157940,1720110648964,-419.82559899,0.00014794,2]
[331157943,1720110648976,-80.17440101,0.00014794,2]
[331157945,1720110648985,-526.05,0.00014794,2]
[331157947,1720110648995,-564.15118506,0.00014794,2]
[331157949,1720110649003,-463.60221755,0.00014794,2]
[331157951,1720110649013,-500.0,0.00014794,2]
[331157953,1720110649022,-500.0,0.00014794,2]
[331157955,1720110649031,-151.0,0.00014794,2]
[331157957,1720110649041,-500.0,0.00014794,2]
[331157959,1720110649050,-1005.3,0.00014794,2]
[331157961,1720110649059,-500.0,0.00014794,2]
[331157963,1720110649068,-500.0,0.00014794,2]
[331157964,1720110649077,-158.28868341,0.00014794,2]
[331157966,1720110649086,-500.0,0.00014794,2]
[331157968,1720110649096,-845.0,0.00014794,2]
[331157970,1720110649105,-1154.75,0.00014794,2]
[331157972,1720110649114,-500.0,0.00014794,2]
[331157974,1720110649124,-8619.5225695,0.00014794,2]
[331157977,1720110649136,-2007.10844194,0.00014794,2]
[331157979,1720110649148,-1475.78145314,0.00014794,2]
[331157981,1720110649160,-382.58753542,0.00014794,2]
[331157983,1720110649169,-500.0,0.00014794,2]
[331157985,1720110649178,-500.0,0.00014794,2]
[331157987,1720110649188,-500.0,0.00014794,2]
[331157989,1720110649197,-475.50370351,0.00014794,2]
[331159562,1720110722194,187.64478609,9.999e-05,2]
[331159563,1720110808552,387.25,0.00010959,2]
[331159564,1720110842527,1170.32334789,9.999e-05,2]
[331159565,1720110856272,207.76713087,9.999e-05,2]
[331159568,1720110957858,255.26958221,9.999e-05,2]
[331159569,1720110974691,187.64478609,9.999e-05,2]
[331159572,1720111037820,14527.91315295,0.0001,2]
[331159576,1720111059681,187.64478609,9.999e-05,2]
[331159577,1720111075548,191.85,0.00010959,2]
[331159578,1720111086307,159.87,0.00010959,2]
[331159579,1720111089807,165.00815731,9.999e-05,2]
[331159580,1720111096815,799.38,0.00010959,2]
[331159581,1720111153444,1572.67,0.00011341,2]
[331159582,1720111159694,315.01830881,9.999e-05,2]
[331159586,1720111227019,251.71857067,9.999e-05,2]
[331159587,1720111333693,164.57624121,9.999e-05,2]
[331159588,1720111339506,154.88383712,9.999e-05,2]
[331159590,1720111374322,656.2,0.00010959,2]
[331159592,1720111384990,546.84,0.00010959,2]
[331159593,1720111405602,159.98,0.00010959,2]
[331159594,1720111416099,169.95,0.00010959,2]
[331159595,1720111426628,172.14,0.00010959,2]
[331159596,1720111435512,154.88383712,9.999e-05,2]
[331159597,1720111437335,860.74,0.00010959,2]
[331159598,1720111448038,152.61,0.00010959,2]
[331159599,1720111464888,282.93616103,9.999e-05,2]
[331159600,1720111468782,763.09,0.00010959,2]
[331159601,1720111477634,242.79486718,9.999e-05,2]
[331159602,1720111528626,187.02576402,9.999e-05,2]
[331159603,1720111557739,155.36472986,9.999e-05,2]
[331159604,1720111561438,455.7,0.00010959,2]
[331159605,1720111564523,16218.68524789,9.999e-05,2]
[331159606,1720111717951,188.94644421,9.999e-05,2]
[331159607,1720111721004,-300.0,0.00012119,2]
[331159608,1720111721045,-300.0,0.00012119,2]
[331159609,1720111721078,-251.52040461,0.0001212,2]
[331159610,1720111721146,-851.52040461,0.0001212,2]
[331159611,1720111721194,-851.52040461,0.0001212,2]
[331159619,1720111771243,-208.7303948,0.0001212,2]
[331159620,1720111771273,-693.88123409,0.0001212,2]
[331159621,1720111771308,-902.61162889,0.0001212,2]
[331159622,1720111771352,-451.57951247,0.0001212,2]
[331159623,1720111795517,-947.74768429,0.0001212,2]
[331159624,1720111795567,-947.74768429,0.0001212,2]
[331159625,1720111795628,-823.73821911,0.0001212,2]
[331159659,1720111831933,-300.0,0.00012119,2]
[331159661,1720111831943,-118.89313081,0.00012119,2]
[331159665,1720111832063,-181.10686919,0.00012119,2]
[331159666,1720111832073,-9496.81807092,0.0001212,2]
[331159667,1720111832083,-155.08961822,0.0001212,2]
[331159668,1720111832092,-1237.77183766,0.00012381,2]
[331159682,1720111837999,-23662.22816234,0.00012381,2]
[331159683,1720111838009,-420.0,0.00013302,2]
[331159685,1720111838019,-420.0,0.00013331,2]
[331159687,1720111838029,-29634.9996795,0.00013488,2]
[331159688,1720111838039,-1140.50047029,0.00013497,2]
[331159689,1720111838048,-209.51418955,0.00013498,2]
[331159690,1720111838058,-252.17804026,0.00013498,2]
[331159691,1720111838068,-71862.16954621,0.00013498,2]
[331159692,1720111838077,-173.0706056,0.00013598,2]
[331159693,1720111838087,-118539.998718,0.00013678,2]
[331159694,1720111838096,-118539.998718,0.00013688,2]
[331159695,1720111838106,-1206.24,0.00013698,2]
[331159696,1720111838115,-962.97,0.00013698,2]
[331159697,1720111838124,-500.0,0.00013698,2]
[331159698,1720111838134,-500.0,0.00013698,2]
[331159699,1720111838143,-500.0,0.00013698,2]
[331159700,1720111838153,-500.0,0.00013698,2]
[331159701,1720111838162,-500.0,0.00013698,2]
[331159702,1720111838171,-500.0,0.00013698,2]
[331159703,1720111838181,-244.18779359,0.00013698,2]
[331159704,1720111838191,-500.0,0.00013698,2]
[331159705,1720111838201,-500.0,0.00013698,2]
[331159706,1720111838210,-500.0,0.00013698,2]
[331159707,1720111838219,-500.0,0.00013698,2]
[331159708,1720111838231,-846.17,0.00013698,2]
[331159709,1720111838240,-500.0,0.00013698,2]
[331159710,1720111838250,-500.0,0.00013698,2]
[331159711,1720111838259,-722.55,0.00013698,2]
[331159712,1720111838269,-507.34931659,0.00013698,2]
[331159713,1720111838279,-505.18956139,0.00013698,2]
[331159714,1720111838288,-504.62852629,0.00013698,2]
[331159715,1720111838298,-510.95816247,0.00013698,2]
[331159716,1720111838308,-500.0,0.00013698,2]
[331159717,1720111838318,-500.0,0.00013698,2]
[331159718,1720111838327,-505.93781546,0.00013698,2]
[331159719,1720111838337,-1088.19,0.00013698,2]
[331159720,1720111838346,-500.0,0.00013698,2]
[331159721,1720111838355,-500.0,0.00013698,2]
[331159722,1720111838366,-500.0,0.00013698,2]
[331159723,1720111838375,-500.0,0.00013698,2]
[331159724,1720111838385,-500.0,0.00013698,2]
[331159725,1720111838394,-500.0,0.00013698,2]
[331159726,1720111838404,-500.0,0.00013698,2]
[331159727,1720111838414,-500.0,0.00013698,2]
[331159728,1720111838423,-500.0,0.00013698,2]
[331159729,1720111838433,-500.0,0.00013698,2]
[331159730,1720111838443,-500.0,0.00013698,2]
[331159731,1720111838452,-500.0,0.00013698,2]
[331159732,1720111838462,-500.0,0.00013698,2]
[331159733,1720111838472,-500.0,0.00013698,2]
[331159734,1720111838484,-500.0,0.00013698,2]
[331159735,1720111838493,-500.0,0.00013698,2]
[331159736,1720111838503,-8296.52,0.00013698,2]
[331159737,1720111838512,-501.31746286,0.00013698,2]
[331159738,1720111838521,-500.0,0.00013698,2]
[331159739,1720111838531,-500.0,0.00013698,2]
[331159740,1720111838540,-500.0,0.00013698,2]
[331159741,1720111838549,-520.89678665,0.00013698,2]
[331159742,1720111838558,-500.0,0.00013698,2]
[331159743,1720111838567,-531.09889853,0.00013698,2]
[331159744,1720111838576,-502.93042896,0.00013698,2]
[331159745,1720111838586,-514.83462057,0.00013698,2]
[331159746,1720111838595,-500.0,0.00013698,2]
[331159747,1720111838604,-500.0,0.00013698,2]
[331159748,1720111838614,-500.0,0.00013698,2]
[331159749,1720111838623,-500.0,0.00013698,2]
[331159750,1720111838632,-500.0,0.00013698,2]
[331159751,1720111838641,-3764.85,0.00013698,2]
[331159752,1720111838653,-500.0,0.00013698,2]
[331159753,1720111838663,-500.0,0.00013698,2]
[331159754,1720111838673,-500.0,0.00013698,2]
[331159755,1720111838682,-500.0,0.00013698,2]
[331159756,1720111838692,-539.50748985,0.00013698,2]
[331159757,1720111838701,-500.0,0.00013698,2]
[331159758,1720111838711,-500.0,0.00013698,2]
[331159759,1720111838720,-500.0,0.00013698,2]
[331159760,1720111838732,-500.0,0.00013698,2]
[331159761,1720111838741,-500.0,0.00013698,2]
[331159762,1720111838752,-500.0,0.00013698,2]
[331159763,1720111838763,-500.0,0.00013698,2]
[331159764,1720111838772,-500.0,0.00013698,2]
[331159765,1720111838781,-500.0,0.00013698,2]
[331159766,1720111838791,-500.0,0.00013698,2]
[331159767,1720111838801,-500.0,0.00013698,2]
[331159768,1720111838810,-691.65,0.00013698,2]
[331159769,1720111838820,-500.0,0.00013698,2]
[331159770,1720111838830,-500.0,0.00013698,2]
[331159771,1720111838841,-500.0,0.00013698,2]
[331159772,1720111838851,-500.0,0.00013698,2]
[331159773,1720111838860,-500.0,0.00013698,2]
[331159774,1720111838870,-500.0,0.00013698,2]
[331159775,1720111838880,-507.40428864,0.00013698,2]
[331159776,1720111838889,-500.0,0.00013698,2]
[331159777,1720111838900,-500.0,0.00013698,2]
[331159778,1720111838909,-500.0,0.00013698,2]
[331159779,1720111838918,-500.0,0.00013698,2]
[331159780,1720111838927,-500.0,0.00013698,2]
[331159781,1720111838936,-500.0,0.00013698,2]
[331159782,1720111838946,-567.3157784,0.00013698,2]
[331159783,1720111838955,-500.0,0.00013698,2]
[331159784,1720111838964,-500.0,0.00013698,2]
[331159785,1720111838974,-500.0,0.00013698,2]
[331159786,1720111838986,-500.0,0.00013698,2]
[331159787,1720111838997,-599.7,0.00013698,2]
[331159788,1720111839010,-1611.17,0.00013698,2]
[331159789,1720111839020,-500.0,0.00013698,2]
[331159790,1720111839030,-503.03791609,0.00013698,2]
[331159791,1720111839039,-500.0,0.00013698,2]
[331159792,1720111839049,-500.0,0.00013698,2]
[331159793,1720111839059,-500.0,0.00013698,2]
[331159794,1720111839070,-500.0,0.00013698,2]
[331159795,1720111839080,-541.95,0.00013698,2]
[331159796,1720111839091,-500.0,0.00013698,2]
[331159797,1720111839100,-276.08140039,0.00013698,2]
[331159798,1720111839110,-500.0,0.00013698,2]
[331159799,1720111839120,-521.57931281,0.00013698,2]
[331159800,1720111839130,-500.0,0.00013698,2]
[331159801,1720111839140,-500.0,0.00013698,2]
[331159802,1720111839150,-500.0,0.00013698,2]
[331159803,1720111839160,-500.0,0.00013698,2]
[331159804,1720111839170,-505.0,0.00013698,2]
[331159805,1720111839180,-504.07157987,0.00013698,2]
[331159806,1720111839191,-500.0,0.00013698,2]
[331159807,1720111839201,-500.0,0.00013698,2]
[331159808,1720111839211,-500.0,0.00013698,2]
[331159809,1720111839221,-524.10867881,0.00013698,2]
[331159810,1720111839232,-500.0,0.00013698,2]
[331159811,1720111839242,-500.0,0.00013698,2]
[331159812,1720111839252,-500.0,0.00013698,2]
[331159813,1720111839261,-2198.82,0.00013698,2]
[331159814,1720111839272,-500.0,0.00013698,2]
[331159815,1720111839282,-500.0,0.00013698,2]
[331159816,1720111839292,-500.0,0.00013698,2]
[331159817,1720111839302,-500.0,0.00013698,2]
[331159818,1720111839311,-500.0,0.00013698,2]
[331159819,1720111839321,-505.74690447,0.00013698,2]
[331159820,1720111839331,-1018.96,0.00013698,2]
[331159821,1720111839341,-500.0,0.00013698,2]
[331159822,1720111839350,-500.0,0.00013698,2]
[331159823,1720111839360,-500.0,0.00013698,2]
[331159824,1720111839370,-500.0,0.00013698,2]
[331159825,1720111839380,-500.0,0.00013698,2]
[331159826,1720111839390,-500.0,0.00013698,2]
[331159827,1720111839399,-503.22908055,0.00013698,2]
[331159828,1720111839409,-622.08543279,0.00013698,2]
[331159829,1720111839419,-781.13,0.00013698,2]
[331159830,1720111839429,-500.0,0.00013698,2]
[331159831,1720111839439,-504.13425615,0.00013698,2]
[331159832,1720111839449,-1122.93,0.00013698,2]
[331159833,1720111839459,-500.0,0.00013698,2]
[331159834,1720111839468,-500.0,0.00013698,2]
[331159835,1720111839481,-501.65737272,0.00013698,2]
[331159836,1720111839491,-500.0,0.00013698,2]
[331159837,1720111839502,-500.0,0.00013698,2]
[331159838,1720111839512,-280.29,0.00013698,2]
[331159839,1720111839522,-500.0,0.00013698,2]
[331159840,1720111839532,-500.0,0.00013698,2]
[331159841,1720111839542,-506.59603972,0.00013698,2]
[331159842,1720111839552,-500.0,0.00013698,2]
[331159843,1720111839561,-324.1557702,0.00013698,2]
[331159844,1720111839571,-500.84536241,0.00013698,2]
[331159845,1720111839581,-500.0,0.00013698,2]
[331159846,1720111839590,-500.0,0.00013698,2]
[331159847,1720111839600,-500.0,0.00013698,2]
[331159848,1720111839610,-500.0,0.00013698,2]
[331159849,1720111839620,-500.0,0.00013698,2]
[331159850,1720111839630,-500.0,0.00013698,2]
[331159851,1720111839640,-613.09686289,0.00013698,2]
[331159852,1720111839649,-500.0,0.00013698,2]
[331159853,1720111839659,-520.48664714,0.00013698,2]
[331159854,1720111839668,-500.0,0.00013698,2]
[331159855,1720111839678,-500.0,0.00013698,2]
[331159856,1720111839688,-1564.47,0.00013698,2]
[331159857,1720111839698,-500.0,0.00013698,2]
[331159858,1720111839708,-500.0,0.00013698,2]
[331159859,1720111839836,-508.25109994,0.00013698,2]
[331159860,1720111839848,-500.0,0.00013698,2]
[331159861,1720111839858,-502.23344955,0.00013698,2]
[331159862,1720111839868,-500.0,0.00013698,2]
[331159863,1720111839878,-2030.75,0.00013698,2]
[331159864,1720111839888,-277.23586388,0.00013698,2]
[331159865,1720111839897,-500.0,0.00013698,2]
[331159866,1720111839907,-500.0,0.00013698,2]
[331159867,1720111839915,-500.0,0.00013698,2]
[331159868,1720111839925,-502.87927864,0.00013698,2]
[331159869,1720111839935,-500.0,0.00013698,2]
[331159870,1720111839946,-500.0,0.00013698,2]
[331159871,1720111839956,-500.0,0.00013698,2]
[331159872,1720111839976,-575.91855851,0.00013698,2]
[331159873,1720111839988,-500.0,0.00013698,2]
[331159874,1720111840000,-500.0,0.00013698,2]
[331159875,1720111840011,-500.0,0.00013698,2]
[331159876,1720111840021,-530.49321375,0.00013698,2]
[331159877,1720111840031,-501.10058806,0.00013698,2]
[331159879,1720111840041,-500.0,0.00013698,2]
[331159880,1720111840051,-500.0,0.00013698,2]
[331159881,1720111840061,-500.0,0.00013698,2]
[331159882,1720111840071,-500.0,0.00013698,2]
[331159883,1720111840082,-500.0,0.00013698,2]
[331159884,1720111840092,-12363.61,0.00013698,2]
[331159885,1720111840102,-500.0,0.00013698,2]
[331159886,1720111840111,-500.0,0.00013698,2]
[331159887,1720111840121,-500.0,0.00013698,2]
[331159888,1720111840131,-502.34145915,0.00013698,2]
[331159889,1720111840141,-193.48871249,0.00013698,2]
[331159890,1720111840150,-500.0,0.00013698,2]
[331159891,1720111840160,-500.0,0.00013698,2]
[331159892,1720111840170,-500.0,0.00013698,2]
[331159893,1720111840180,-500.0,0.00013698,2]
[331159894,1720111840190,-1157.56,0.00013698,2]
[331159895,1720111840200,-504.14572448,0.00013698,2]
[331159896,1720111840210,-528.67057056,0.00013698,2]
[331159897,1720111840220,-500.0,0.00013698,2]
[331159898,1720111840231,-500.0,0.00013698,2]
[331159899,1720111840241,-476.92273949,0.00013698,2]
[331159900,1720111840250,-1042.28,0.00013698,2]
[331159901,1720111840260,-500.0,0.00013698,2]
[331159902,1720111840269,-742.0,0.00013698,2]
[331159903,1720111840279,-501.26820608,0.00013698,2]
[331159904,1720111840289,-500.0,0.00013698,2]
[331159905,1720111840299,-625.22,0.00013698,2]
[331159906,1720111840309,-500.0,0.00013698,2]
[331159907,1720111840319,-614.6812206,0.00013698,2]